Cogmind - Beta 11 X8 @@@ ROGUE MODE // 2021.11.23 @ 01:15:29 Player: Runia Result: Destroyed by G-47 Trooper with Particle Gun Performance ------------- Evolutions (0) 0 Regions Visited (1) 200 Robots Destroyed (12) 60 Value Destroyed (313) 313 Prototype IDs (0) 0 Alien Tech Used (0) 0 Bonus (0) 0 TOTAL SCORE: 573 Bonus ------- None Cogmind --------- Core Integrity 0/250 Matter 214/300 Energy 79/100 System Corruption 0% Temperature Cool (9) Movement Treading (240) Ox1 Location -10/Materials Parts ------- > --- POWER (1) -------- (None) > --- PROPULSION (2) --- Light Treads > --- UTILITY (2) ------ Large Storage Unit > --- WEAPON (2) ------- Assault Rifle > --- INVENTORY (15) --- Improved Heat Sink Medium Matter Pod (81) Large Matter Pod (0) Light Armor Plating Light Armor Plating Light Armor Plating Light Armor Plating Peak State ------------ > --- POWER ------------ Ion Engine > --- PROPULSION ------- Light Treads Light Treads > --- UTILITY ---------- Large Storage Unit Light Armor Plating > --- WEAPON ----------- Assault Rifle Light Assault Rifle > --- INVENTORY -------- Light Ion Engine Improved Heat Sink Medium Matter Pod Large Matter Pod Light Armor Plating Light Armor Plating Light Armor Plating Light Armor Plating [Rating: 8] Favorites ----------- Power Ion Engine Engine Ion Engine Propulsion Light Treads Treads Light Treads Leg Aluminum Leg Utility Large Storage Unit Storage Large Storage Unit Protection Light Armor Plating Weapon Assault Rifle Energy Gun EM Pulse Gun Ballistic Gun Assault Rifle Build | -11 -10 ------- Run | Scr Mat Slots Evolved . | . . Power . | . . Propulsion . | . . Utility . | . . Weapon . | . . Parts Attached 12 | 3 9 Power 1 | . 1 Engine 1 | . 1 Core . | . . Reactor . | . . Propulsion 7 | 2 5 Treads 7 | 2 5 Leg . | . . Wheel . | . . Hover . | . . Flight . | . . Utility 2 | . 2 Device . | . . Storage 1 | . 1 Processor . | . . Hackware . | . . Protection 1 | . 1 Artifact . | . . Weapon 2 | 1 1 Energy Gun . | . . Energy Cannon . | . . Ballistic Gun 2 | 1 1 Ballistic Cannon . | . . Launcher . | . . Special Weapon . | . . Impact Weapon . | . . Slashing Weapon . | . . Piercing Weapon . | . . Special Melee Weapon . | . . Unidentified Prototypes . | . . Parts Lost 2 | . 2 Power . | . . Propulsion 1 | . 1 Utility . | . . Weapon 1 | . 1 Highest Loss Streak 1 | . 1 Average Slot Usage (%) 93 | . 93 Engine 13 | . 13 Treads 26 | . 26 Storage 14 | . 14 Protection 11 | . 11 Ballistic Gun 26 | . 26 Naked Turns . | . . Heaviest Build 31 | 13 31 Greatest Support 40 | 40 40 Greatest Overweight (x) 8 | . 8 Average Overweight (x) . | . . Largest Inventory Capacity 15 | 8 15 Average Capacity 14 | 8 14 Most Carried 8 | 5 8 Average Carried 6 | 2 6 Final Capacity 15 | 8 15 Final Carried 7 | 1 7 Class Distribution -------------------- 100% | Mutant Dominant Class ---------------- Mutant | -10/Materials Resources | -11 -10 ----------- Run | Scr Mat Matter Collected 499 | 200 299 Remotely . | . . Salvage Created 499 | . 499 Parts 25 | . 25 Haulers Intercepted 1 | . 1 Recyclers Shooed . | . . Parts Field Recycled . | . . Retrieved Matter . | . . Parts Self-Destructed . | . . Prevented . | . . Kills | -11 -10 ------- Run | Scr Mat Combat Hostiles Destroyed 10 | . 10 Guns 10 | . 10 Classes Destroyed 4 | . 4 Hauler 1 | . 1 Recycler 1 | . 1 Swarmer 2 | . 2 Grunt 8 | . 8 Best Kill Streak 2 | . 2 Combat Bots Only 2 | . 2 Max Kills in Single Turn 1 | . 1 Gunslinging . | . . Exploded . | . . Melee . | . . Uniques/NPCs Destroyed . | . . Combat | -11 -10 -------- Run | Scr Mat Damage Taken 775 | . 775 Core 264 | . 264 Absorbed by Shields . | . . Core Remaining (%) 100 | 100 . Volleys Fired 52 | . 52 Largest 2 | . 2 Hottest 40 | . 40 Shots Fired 98 | . 98 Gun 98 | . 98 Cannon . | . . Launcher . | . . Special . | . . Kinetic 98 | . 98 Thermal . | . . Explosive . | . . Electromagnetic . | . . Robot Hit Streak 16 | . 16 Robot Miss Streak 7 | . 7 Penetration Max . | . . Secondary Targets . | . . Shots Hit Robots 62 | . 62 Core Hits 26 | . 26 Critical Kills . | . . Critical Parts Destroyed . | . . Critical Strikes . | . . Melee Attacks . | . . Impact . | . . Slashing . | . . Piercing . | . . Sneak Attacks . | . . Combat Hostiles . | . . Follow-up Attacks . | . . Damage Inflicted 690 | . 690 Guns 688 | . 688 Cannons . | . . Explosions . | . . Melee . | . . Ramming 2 | . 2 Kinetic 688 | . 688 Thermal . | . . Explosive . | . . Electromagnetic . | . . Impact . | . . Slashing . | . . Piercing . | . . Highest Corruption . | . . Average Corruption . | . . Corruption Purged . | . . Overload Shots . | . . Overflow Damage . | . . Projectiles . | . . Explosions . | . . Melee . | . . Knockbacks . | . . Impact . | . . Kinetic . | . . Secondary . | . . Self-Inflicted Damage . | . . Shots . | . . Rammed 2 | . 2 Targets Rammed 2 | . 2 Kicked . | . . Crushed . | . . Highest Temperature 43 | . 43 Average Temperature 10 | . 10 Received Heat Transfer 426 | . 426 Siege Activations . | . . Robots Corrupted . | . . Combat Hostiles . | . . Parts Fried . | . . Impact Corruptions . | . . Robots Melted . | . . Combat Hostiles . | . . Parts Melted . | . . Heat Transferred . | . . Parts Sabotaged . | . . Parts Stolen . | . . Parts Stripped . | . . Power Chain Reactions . | . . Missiles Intercepted . | . . Alert | -11 -10 ------- Run | Scr Mat Peak Influence 236 | . 236 Initial . | . . Average 113 | . 114 Maximum Alert Level 1 | . 1 Low Security (%) 95 | 100 95 Level 1 4 | . 4 Level 2 . | . . Level 3 . | . . Level 4 . | . . Level 5 . | . . High Security . | . . Max Security . | . . Squads Dispatched 6 | . 6 Investigation 3 | . 3 Extermination . | . . Reinforcement 3 | . 3 Assault . | . . Garrison . | . . Intercept . | . . Construction Impeded . | . . Haulers Reinforced . | . . Active Scanning Responses . | . . Cargo Convoy Interrupts . | . . Stealth | -11 -10 --------- Run | Scr Mat Distress Signals 1 | . 1 Communications Jammed . | . . Distress Signals . | . . Times Spotted 19 | . 19 Peak Tracking Total 7 | . 7 Tactical Retreats 1 | . 1 Traps | -11 -10 ------- Run | Scr Mat Traps Triggered 3 | . 3 Indirectly . | . . Trap Hack Attempts . | . . Triggered . | . . Disarmed . | . . Reprogrammed . | . . Reused . | . . Traps Extracted . | . . Installed . | . . Triggered . | . . Machines | -11 -10 ---------- Run | Scr Mat Machines Disabled . | . . Max in Single Turn . | . . Machines Sabotaged . | . . Garrisons Compromised . | . . Overloaded Fab Kills . | . . Hacking | -11 -10 --------- Run | Scr Mat Machines Accessed 5 | . 5 Terminals 3 | . 3 Fabricators . | . . Repair Stations . | . . Recycling Units 2 | . 2 Scanalyzers . | . . Garrison Access . | . . Total Hacks 12 | . 12 Successful 4 | . 4 Failed 8 | . 8 Catastrophic . | . . Database Lockouts . | . . Manual 2 | . 2 Terminals 10 | . 10 Fabricators . | . . Repair Stations . | . . Recycling Units 2 | . 2 Scanalyzers . | . . Garrison Access . | . . Terminal Hacks 2 | . 2 Locate Traps 1 | . 1 Zone Layout 1 | . 1 Fabricator Hacks . | . . Repair Station Hacks . | . . Recycling Unit Hacks . | . . Scanalyzer . | . . Garrison Access Hacks . | . . Unauthorized Hacks 2 | . 2 Terminals . | . . Fabricators . | . . Repair Stations . | . . Recycling Units 2 | . 2 Tunnel 2 | . 2 Scanalyzers . | . . Garrison Access . | . . Data Cores Recovered . | . . Used . | . . Hacking Detections 3 | . 3 Full Trace Events 1 | . 1 Feedback Events . | . . Feedback Blocked . | . . Robot Schematics Acquired . | . . Robots Built . | . . Authchips . | . . Time . | . . Total Robot Build Rating . | . . Part Schematics Acquired . | . . Parts Built . | . . Authchips . | . . Time . | . . Total Part Build Rating . | . . Parts Repaired . | . . Time . | . . Parts Recycled . | . . Recycled Matter . | . . Retrieved Matter . | . . Retrieved Components . | . . Parts Scanalyzed . | . . Part Schematics Acquired . | . . Parts Damaged . | . . Bothacking | -11 -10 ------------ Run | Scr Mat Used RIF Installer . | . . Robots Hacked . | . . Non-combat . | . . Combat . | . . Robot Hacks Applied . | . . Relay Couplers Released . | . . Fabnet Peak Effective % . | . . Robots Rewired . | . . Allies Hacked . | . . Hacks Repelled . | . . Allies | -11 -10 -------- Run | Scr Mat Total Allies . | . . Largest Group . | . . Highest-Rated Group . | . . Highest-Rated Ally . | . . Total Orders . | . . Ally Attacks . | . . Total Damage . | . . Kills . | . . Allies Corrupted . | . . Allies Melted . | . . Intel | -11 -10 ------- Run | Scr Mat Robot Analysis Total . | . . Derelict Logs Recovered . | . . Drone Launches . | . . Drone Recoveries . | . . Exploration | -11 -10 ------------- Run | Scr Mat Turns Passed 668 | 6 662 Spaces Moved 292 | 1 291 Core 2 | . 2 Treads 290 | 1 289 Legs . | . . Wheels . | . . Hover . | . . Flight . | . . Fastest Speed 160 | 160 160 Average Speed 163 | 160 163 Slowest Speed 450 | 160 450 Overloaded Moves . | . . Propulsion Burnouts . | . . Robots Hopped . | . . Cave-ins Triggered . | . . Exploration Rate (%) 26 | 2 50 Regions Visited 1 Branch Regions . Pre-discovered Areas 2 | . 2 Known Exits Taken . | . . Unknown Exits Taken 1 | 1 . Scrap Searched . | . . Spaces Dug . | . . Terrain Destroyed . | . . Melee . | . . Projectile . | . . AOE . | . . Terrain Rammed . | . . Walls Destroyed . | . . Machines Disabled . | . . Actions | -11 -10 --------- Run | Scr Mat Total 392 | 8 384 Wait 21 | . 21 Move 291 | . 291 Hop . | . . Pick Up 7 | . 7 Fast Attach 8 | . 8 Attach 3 | 3 . Detach . | . . Swap 1 | . 1 Drop 7 | 5 2 Fire 52 | . 52 Melee . | . . Ram . | . . Kick . | . . Crush 2 | . 2 Escape Stasis . | . . Rewire . | . . Trap . | . . Miscellaneous . | . . Route ------- -11/Scrapyard -10/Materials (discovered 3 exits: [*Mat x2] / [*Min]) History --------- Turn | Location | Event 7 | -11/Scrapyard | Discovered new exit (range 0) 7 | -11/Scrapyard | Entered Materials 238 | -10/Materials | Discovered new exit (range 15) 303 | -10/Materials | Build established: Mutant 494 | -10/Materials | Discovered new exit (range 16) 595 | -10/Materials | Discovered new exit (range 4) 644 | -10/Materials | Core integrity fell below 50% 658 | -10/Materials | Core integrity fell below 20% 669 | -10/Materials | Destroyed by G-47 Trooper with Particle Gun Last Messages --------------- 00628_ Lgt. Assault Rifle destroyed. 00631_ S-10 Pest destroyed. 00641_ Slammed into G-47 Trooper. 00648_ Triggered Blade Trap. 00648_ Massive razor-sharp blades shoot up from within the floor. 00648_ Lgt. Treads severed. 00648_ Assault Rifle severed. 00648_ Lgt. Ion Engine severed. 00650_ Acquired Lgt. Treads. 00655_ Triggered Blade Trap. 00655_ Massive razor-sharp blades shoot up from within the floor. 00655_ Lgt. Treads severed. 00658_ U-05 Engineer lays Concrete. 00660_ Acquired Lgt. Treads. 00661_ K-01 Serf collects debris. 00662_ W-16 Scout sends out distress signal. 00663_ Lgt. Treads destroyed. 00663_ Acquired Lgt. Treads. 00666_ Acquired Assault Rifle. 00668_ K-01 Serf collects debris. Map ----- +----------------------------------------------------+ | ????????????????????????????????? | | ????????????????????????^???????? | | ????????????????????????????????? | | ?????????????????????????^??????? | | ????????????????????????? ??????? | | ????????????????????????? "?????? | | ???????????????????????^^"""????? | | ???????????????????????^^"" ???? | | ???????????????????????? """ ???? | | ??????????????????????? """ ??? | | ???????? ???????????# """ ### | | ???????# ##?????????# " | | ??????# #?????????# = | | ??????? k????? = | | ??????? ?????? ######% | | ??????? ???????????????????#% | | ??????? ???????????????????# | | ???????# #???????????????????# | | ???????# #???????????????????# | | ???????# #???????????????????# | | ???????o #???????????????????# | | ???????# #???????????????????# | | ???????# ###########?????????# | | ???????# w# #?????????# | | ???????# # """ #????????## | | ???????#@* # "T" #????????# | | ???????# u!#= #????????# | | ???????# gs/% """"" #????????# | | ???????# g=#* """"" ??????????# | | ???????# < # """""???????????# | | ???????# # ???????????# | | ???????### #################### | | ?????????# | | ?????????# | | ?????????# | | ?????????######################## | | ????????????????????????????????? | | ????????????????????????????????? | | ????????????????????????????????? | | | | | | | | | | | | | | | | | | | | | | | +----------------------------------------------------+ Best States ------------- Heat Dissipation 25 Energy Generation 10 Energy Capacity 250 Matter Stores 300 Matter Capacity 300 Sight Range 16 Terrain Scan Density 10 Armor Coverage 150 Evasion (%) 40 Recoil Reduction 2 Item Schematics ----------------- None Robot Schematics ------------------ None Fabricated ------------ Nothing Alien Tech Used ----------------- None Achievements -------------- None Challenges ------------ None Game ------ Seed WeaponPhysicsMegatreads Manual? 0 Play Time 00:06:35 Cumulative 506.1 hours Start 2021.11.23 @ 01:11:41 End 2021.11.23 @ 01:15:29 Sessions 1 Manual Loads 0 Difficulty Rogue Special Mode None Game No. 492 Rogue 492 Adventurer 0 Explorer 0 Win Type - Total 13 Types 9/0/3/1/0/0/0/0/0 Lore% 83 Gallery% 94 Achievement% 72 Wizard Run 0 Options --------- ASCII 0 Keyboard 0 Movement Mouse Keybinds 1 Fullscreen 2 Font 24/Smallcaps Map View 76x50 Tactical HUD 1 Map Filters NONE Filters NONE Steam 1 RUN: 014a1dba-3768-40c5-9733-cd4dcd4e1a9a